bitfinex/quotes_ETHUSD_20260131
["timestamp","ask_amount","ask_price","bid_price","bid_amount"]
[1769838599350,4.0940898,2699.8,2698.8,3.37152934]
[1769838600284,0.92600525,2699.8,2698.6,3.37152934]
[1769838600886,0.001,2699.9,2699.0,3.37152934]
[1769838602891,0.001,2699.9,2699.2,3.37152934]
[1769838603102,0.001,2699.9,2699.4,3.37152934]
[1769838605609,0.001,2699.9,2699.4,4.29765004]
[1769838606594,0.001,2699.9,2699.5,3.37152934]
[1769838611781,0.001,2699.7,2699.5,3.37152934]
[1769838611984,3.37662142,2700.3,2699.5,3.37152934]
[1769838612303,3.37662142,2700.3,2699.6,0.429765]
[1769838614298,4.30287876,2700.2,2699.6,0.429765]
[1769838614614,3.37702142,2699.7,2698.7,0.92635494]
[1769838614902,3.37702142,2699.7,2698.6,4.33143493]
[1769838615102,3.37702142,2699.7,2698.6,5.09471181]
[1769838615272,3.37702142,2699.4,2698.6,0.76327688]
[1769838616170,4.30318746,2699.3,2698.6,0.76327688]
[1769838616374,3.37702142,2699.3,2698.6,0.76327688]
[1769838616679,3.37702142,2699.3,2698.6,1.68968135]
[1769838616870,3.37702142,2699.3,2698.7,0.26167165]
[1769838617606,3.37702142,2699.3,2698.6,0.76327688]
[1769838624259,4.30318759,2699.3,2698.6,0.76327688]
[1769838624441,4.30318759,2699.3,2698.8,0.0011]
[1769838626436,4.30318759,2699.3,2698.5,0.0006]
[1769838626437,3.37702142,2698.8,2698.5,0.0006]
[1769838626608,3.37702142,2698.8,2698.0,0.0011]
[1769838626795,3.37702142,2698.6,2698.0,0.0011]
[1769838629542,4.30344552,2698.6,2698.0,0.0011]
[1769838633025,3.37702142,2698.5,2698.0,0.0011]
[1769838635947,3.37702142,2698.5,2698.2,0.0011]
[1769838642260,0.9264241,2698.6,2698.2,0.0011]
[1769838642965,3.46700781,2698.5,2698.2,0.0011]
[1769838644362,0.9264241,2698.6,2698.2,0.0011]
[1769838644559,1.81373793,2698.7,2698.2,0.0011]
[1769838645871,5.28074574,2698.7,2698.2,0.0011]
[1769838646029,5.28074574,2698.7,2697.7,0.92668635]
[1769838646030,3.46700781,2698.3,2697.3,3.23889288]
[1769838647238,3.46700781,2698.3,2698.2,0.0011]
[1769838647443,3.81482042,2698.3,2697.3,3.23889288]
[1769838647871,0.92654362,2698.2,2698.0,0.0011]
[1769838648026,0.92654362,2698.2,2697.3,3.23889288]
[1769838648361,4.39355143,2698.2,2697.3,3.23889288]
[1769838649562,5.27598054,2698.2,2697.3,3.23889288]
[1769838650129,5.27598054,2698.2,2697.5,3.23889288]
[1769838650374,0.001,2698.5,2697.6,3.23779288]
[1769838650571,0.19327519,2698.8,2697.8,3.23779288]
[1769838650733,1.1196147,2698.8,2698.0,3.23779288]
[1769838650935,0.92633951,2698.8,2698.0,3.23779288]
[1769838652047,0.92633951,2698.8,2698.0,0.92661008]
[1769838652253,0.92633951,2698.8,2698.1,3.23779288]
[1769838652467,0.92633951,2698.8,2698.2,0.4164403]
[1769838654068,3.78989913,2698.9,2698.2,0.4164403]
[1769838654069,1.2492199,2698.9,2698.2,3.65423318]
[1769838654368,0.32289132,2698.9,2698.2,3.65423318]
[1769838655369,1.24920012,2698.9,2698.2,3.65423318]
[1769838655571,1.24920012,2698.9,2698.3,3.69587225]
[1769838659879,0.001,2698.7,2698.3,3.69587225]
[1769838661782,0.001,2698.7,2698.3,0.45807937]
[1769838672150,0.001,2698.7,2698.5,0.0011]
[1769838678084,0.001,2698.7,2698.5,3.51892644]
[1769838682669,3.7049881,2699.1,2698.5,3.87092908]
[1769838682985,3.7049881,2699.1,2698.5,3.51892644]
[1769838684393,0.001,2698.9,2698.5,3.51892644]
[1769838688895,0.001,2698.9,2698.5,0.0011]
[1769838689397,3.53854447,2698.8,2697.8,3.51782644]
[1769838689583,3.53854447,2698.8,2697.7,0.0011]
[1769838689584,3.53854447,2698.5,2697.7,0.0011]
[1769838691107,4.46501941,2698.4,2697.7,0.0011]
[1769838691514,3.53854447,2698.4,2697.7,0.0011]
[1769838691669,1.83061026,2698.7,2697.7,3.51892644]
[1769838691868,0.9263947,2698.7,2697.7,3.51892644]
[1769838692383,4.46493917,2698.7,2697.7,3.51892644]
[1769838695793,4.46493917,2698.7,2697.9,3.51892644]
[1769838704318,3.62576731,2698.9,2697.9,3.51892644]
[1769838704611,0.45520363,2698.8,2697.9,3.51892644]
[1769838707942,0.001,2698.6,2697.9,3.51892644]
[1769838712228,0.001,2698.6,2698.0,3.61637408]
[1769838712416,0.001,2698.9,2698.2,3.61637408]
[1769838712926,0.001,2698.9,2698.4,3.61637408]
[1769838713129,0.001,2698.9,2698.5,4.07066242]
[1769838716522,0.001,2698.9,2698.5,4.99708296]
[1769838716727,0.001,2698.9,2698.6,3.61637408]
[1769838719530,0.001,2698.7,2698.6,3.61637408]
[1769838720199,0.001,2698.7,2698.6,4.54278036]
[1769838720524,0.001,2698.7,2698.6,5.41307628]
[1769838720923,4.87138857,2699.7,2698.7,3.61637408]
[1769838721730,1.24662126,2699.7,2698.7,4.39237408]
[1769838722032,1.24662126,2699.7,2698.9,3.61637408]
[1769838723236,1.24662126,2699.7,2698.9,4.54265827]
[1769838723926,1.24662126,2699.7,2698.9,0.92628419]
[1769838724134,1.24662126,2699.7,2699.0,3.61637408]
[1769838724305,1.24662126,2699.7,2699.0,4.50306466]
[1769838730842,0.001,2699.5,2699.0,4.50306466]
[1769838739723,0.001,2699.5,2699.1,3.52244537]
[1769838744455,0.001,2699.5,2698.9,4.44872955]
[1769838745443,0.001,2699.5,2698.9,3.52244537]
[1769838747457,0.001,2699.5,2698.8,0.61890763]
[1769838747646,5.98744316,2699.5,2698.3,0.92650716]
[1769838748249,0.48889519,2699.5,2698.6,3.52244537]
[1769838748555,0.001,2699.5,2698.7,3.52244537]
[1769838748961,0.001,2699.5,2698.5,4.44886837]
[1769838749259,3.62023244,2699.4,2698.5,4.44886837]
[1769838749455,3.62023244,2699.4,2698.6,0.44488684]
[1769838752564,0.92616604,2699.3,2698.6,0.44488684]
[1769838753862,0.92616604,2699.3,2698.8,0.0011]
[1769838754247,0.92716604,2699.3,2698.8,0.0011]
[1769838762471,3.53026889,2699.2,2698.8,0.0011]
[1769838762675,4.34646568,2699.2,2698.5,0.0011]
[1769838765880,0.001,2699.1,2698.5,0.0011]
[1769838777959,0.001,2699.1,2698.7,0.0011]
[1769838778359,0.001,2698.9,2698.7,0.0011]
[1769838783893,0.001,2699.1,2698.7,3.51444501]
[1769838784091,0.001,2699.1,2698.8,3.86478951]
[1769838785887,0.001,2699.3,2698.9,3.51334501]
[1769838789901,0.001,2699.3,2699.0,0.0011]
[1769838790094,0.001,2699.1,2699.0,0.0011]
[1769838790292,0.001,2699.1,2699.0,0.48032223]
[1769838791304,0.001,2699.1,2698.7,0.0011]
[1769838791305,3.38449994,2699.1,2698.7,0.0011]
[1769838791476,3.38349994,2698.9,2697.9,0.92772716]
[1769838791672,3.38349994,2698.9,2698.1,0.92767604]
[1769838792009,3.38349994,2698.9,2698.1,5.41959942]
[1769838792306,3.38349994,2698.7,2698.1,0.83085061]
[1769838792506,3.38349994,2698.7,2698.1,0.0011]
[1769838795020,3.38349994,2698.6,2698.1,0.0011]
[1769838798402,4.30992206,2698.6,2698.1,0.0011]
[1769838799211,0.92639426,2698.7,2698.1,3.66327165]
[1769838802818,3.70539725,2698.8,2698.3,0.0011]
[1769838802987,0.80152348,2698.7,2698.3,0.0011]
[1769838805207,0.92640628,2698.6,2698.3,0.0011]
[1769838808612,3.38349994,2698.6,2698.1,0.0011]
[1769838809927,0.92637195,2698.7,2698.1,0.0011]
[1769838815237,0.92637195,2698.7,2698.3,0.0011]
[1769838815434,1.72794501,2698.6,2698.3,0.0011]
[1769838815735,0.001,2698.5,2698.3,0.0011]
[1769838827150,0.001,2698.5,2698.1,0.0011]
[1769838829020,3.38880224,2698.5,2698.1,0.0011]
[1769838829658,0.92747232,2698.5,2698.1,0.0011]
[1769838831945,0.001,2698.5,2698.1,0.0011]
[1769838838354,0.001,2698.5,2698.3,0.0011]
[1769838838656,0.80307415,2698.5,2698.3,0.0011]
[1769838839159,0.80307415,2698.5,2698.1,0.0011]
[1769838839662,4.19087639,2698.5,2698.1,0.0011]
[1769838840056,0.92647494,2698.4,2698.0,0.0011]
[1769838841566,4.31427718,2698.4,2698.0,0.0011]
[1769838844062,0.92647494,2698.4,2698.0,0.0011]
[1769838847268,1.72953741,2698.5,2698.0,3.3158488]
[1769838847472,0.92746326,2698.5,2698.0,3.3158488]
[1769838847769,0.92632397,2698.9,2698.1,3.3147488]
[1769838848079,3.7045755,2699.4,2698.2,3.3147488]
[1769838848259,0.92620778,2699.2,2698.2,3.3147488]
[1769838849239,3.70567949,2699.3,2698.2,3.3147488]
[1769838850455,7.00776531,2699.3,2698.2,3.3147488]
[1769838851268,3.30208582,2699.2,2698.2,3.3147488]
[1769838851561,3.30208582,2699.2,2698.2,3.3158488]
[1769838851767,0.001,2698.9,2698.3,3.7389889]
[1769838863996,0.001,2698.7,2698.3,3.7389889]
[1769838869300,3.30208582,2698.6,2698.2,0.0011]
[1769838869467,3.30208582,2698.6,2698.0,0.0011]
[1769838869655,0.33030858,2698.5,2698.0,0.0011]
[1769838870994,0.001,2698.7,2698.0,3.3158488]
[1769838875798,0.001,2698.7,2698.2,0.0011]
[1769838881596,0.001,2698.7,2698.2,3.25719317]
[1769838883092,0.001,2698.7,2698.3,3.25609317]
[1769838887107,0.001,2698.5,2698.3,3.25609317]
[1769838887305,0.001,2698.5,2698.4,0.41837366]
[1769838891403,0.001,2698.9,2698.4,0.41837366]
[1769838891611,0.001,2698.9,2698.4,3.67446683]
[1769838898785,0.001,2698.9,2698.6,0.0011]
[1769838899113,0.001,2698.7,2698.6,0.0011]
[1769838900323,0.001,2698.9,2698.6,0.36876668]
[1769838900782,0.001,2698.9,2698.6,3.62485985]
[1769838901227,0.001,2698.9,2698.6,3.62485985]
[1769838903517,0.001,2699.1,2698.7,3.25609317]
[1769838910626,0.001,2699.1,2698.9,0.0011]
[1769838912625,3.17705548,2699.1,2698.9,0.0011]
[1769838912921,3.49486103,2699.1,2698.6,0.0011]
[1769838913126,3.17705548,2699.1,2698.6,0.0011]
[1769838922628,0.001,2699.1,2698.6,0.0011]
[1769838923031,0.001,2699.1,2698.8,0.0011]
[1769838923323,0.001,2698.9,2698.8,0.0011]
[1769838930747,0.001,2699.3,2698.8,0.0011]
[1769838931644,0.001,2699.3,2698.8,3.50794149]
[1769838933046,0.001,2699.3,2698.8,0.40432218]
[1769838935330,0.001,2699.3,2698.8,0.0011]
[1769838935531,3.17705548,2699.3,2698.8,0.0011]
[1769838935840,3.17705548,2699.3,2698.5,0.0011]
[1769838936145,3.17605548,2699.0,2698.4,0.0011]
[1769838936307,4.10239311,2698.8,2698.4,0.0011]
[1769838936507,3.17605548,2698.8,2698.4,0.0011]
[1769838939651,0.92724047,2699.1,2698.4,2.71538932]
[1769838939820,0.001,2699.1,2698.4,2.71538932]
[1769838940633,0.001,2699.1,2698.5,2.71428932]
[1769838940833,0.001,2699.1,2698.6,3.07847522]
[1769838952045,0.001,2699.1,2698.6,0.3641859]
[1769838958866,0.001,2698.9,2698.6,0.3641859]
[1769838961076,2.89872635,2698.9,2698.4,0.0011]
[1769838963557,2.89772635,2698.7,2698.4,0.0011]
[1769838963761,2.89772635,2698.7,2698.0,0.0011]
[1769838966685,2.55051244,2698.5,2698.0,0.0011]
[1769838968020,0.92640628,2698.6,2698.0,2.65188592]
[1769838969295,1.64463608,2698.6,2698.0,2.65188592]
[1769838970423,1.64463608,2698.6,2698.2,0.0011]
[1769838970612,0.001,2698.5,2698.2,0.0011]
[1769838972924,2.55151244,2698.5,2698.2,0.0011]
[1769838973095,2.55151244,2698.5,2698.0,0.0011]
[1769838973296,0.41961485,2698.4,2698.0,0.0011]
[1769838974830,1.34610425,2698.4,2698.0,0.0011]
[1769838978005,2.55051244,2698.3,2698.0,0.0011]
[1769838980718,3.47703251,2698.3,2698.0,0.0011]
[1769838981338,0.92652007,2698.3,2698.0,0.0011]
[1769838981541,1.68686232,2698.3,2698.0,0.0011]
[1769838982245,1.68686232,2698.3,2698.2,0.0011]
[1769838983141,1.68686232,2698.3,2698.0,0.0011]
[1769838987108,1.68686232,2698.3,2697.9,0.0011]
[1769839004044,2.38740048,2698.2,2697.4,0.0011]
[1769839004253,2.38740048,2698.1,2697.4,0.0011]
[1769839005876,0.9266123,2698.0,2697.4,0.0011]
[1769839006048,3.31401278,2698.0,2697.4,0.0011]
[1769839006247,3.31401278,2698.0,2697.9,0.0011]
[1769839006478,4.09815043,2698.0,2697.9,0.0011]
[1769839007155,4.09815043,2698.0,2697.4,0.0011]
[1769839015171,2.38740048,2697.9,2697.4,0.0011]
[1769839018994,3.31406967,2697.9,2697.6,0.0011]
[1769839020564,2.38740048,2697.8,2697.0,0.0003]
[1769839020758,2.79722121,2697.8,2697.0,0.0003]
[1769839021081,2.38740048,2697.6,2697.0,0.0003]
[1769839021280,2.38740048,2697.6,2696.9,0.0011]
[1769839021472,2.38740048,2697.5,2696.9,0.0011]
[1769839023296,3.31421332,2697.5,2696.9,0.0011]
[1769839030601,0.001,2697.3,2696.9,0.0011]
[1769839054217,0.001,2697.1,2696.9,0.0011]
[1769839058151,0.001,2697.1,2690.8,18.66519098]
[1769839058152,2.36613129,2697.1,2696.3,0.0011]
[1769839058466,2.60284442,2697.1,2696.3,0.0011]
[1769839060437,3.43767238,2697.0,2696.3,0.0011]
[1769839062349,2.51071651,2697.0,2696.3,0.0011]
[1769839062648,0.23771313,2697.1,2696.3,1.75839459]
[1769839062850,0.001,2697.1,2696.3,1.75839459]
[1769839064152,0.001,2697.3,2696.5,1.7741188]
[1769839064348,0.001,2697.3,2696.7,1.7741188]
[1769839064854,0.001,2697.3,2696.4,1.7741188]
[1769839065833,0.001,2697.3,2696.5,1.78927326]
[1769839069249,0.001,2697.3,2696.5,2.7163885]
[1769839071967,2.51171651,2697.3,2696.5,2.7163885]
[1769839072262,2.51171651,2697.3,2696.6,0.27163885]
[1769839075263,2.51171651,2697.3,2696.6,1.19873203]
[1769839075667,0.001,2697.3,2696.6,3.0642566]
[1769839077665,2.51171651,2697.3,2696.7,0.0011]
[1769839077856,0.001,2697.1,2696.7,0.0011]
[1769839078178,0.001,2697.1,2696.7,0.30774566]
[1769839078545,0.001,2697.1,2696.7,0.0011]
[1769839081983,2.51171651,2697.1,2696.7,0.0011]
[1769839087886,3.43863866,2697.1,2696.7,0.0011]
[1769839089482,3.43863866,2697.1,2696.9,0.0011]
[1769839100518,0.001,2697.1,2696.9,0.0011]
[1769839100719,2.42777027,2698.0,2696.9,2.03291347]
[1769839100881,2.43889518,2697.9,2697.0,0.75419375]
[1769839101082,2.42777027,2697.9,2696.9,0.0011]
[1769839101889,2.42777027,2697.9,2696.9,2.04342853]
[1769839102707,2.42777027,2697.7,2696.9,2.04342853]
[1769839102882,2.42777027,2697.7,2697.0,0.29704223]
[1769839103716,2.42777027,2697.7,2697.0,2.3450308]
[1769839104594,0.92668099,2697.8,2697.0,2.3450308]
[1769839104791,2.42777027,2697.9,2697.0,2.3450308]
[1769839104792,3.35442035,2697.9,2697.1,2.05358059]
[1769839104999,3.35442035,2697.9,2697.2,0.32775495]
[1769839106010,2.42877027,2698.1,2697.2,2.39586207]
[1769839109717,0.001,2698.1,2697.3,2.08073818]
[1769839112222,0.001,2698.1,2697.4,0.92681841]
[1769839113427,0.001,2697.9,2697.4,0.92681841]
[1769839113626,0.001,2697.9,2697.5,0.30075566]
[1769839123212,0.001,2697.9,2697.3,0.92682872]
[1769839126250,0.001,2697.7,2697.3,0.92682872]
[1769839128544,0.001,2697.7,2697.2,0.32775495]
[1769839128748,2.60273513,2697.7,2697.2,0.92688561]
[1769839128929,0.001,2697.7,2697.2,0.92688561]
[1769839129444,0.001,2697.7,2697.3,2.17670258]
[1769839130448,0.001,2697.7,2697.4,0.92681841]
[1769839130755,0.001,2697.7,2697.3,3.10353323]
[1769839130955,0.001,2697.7,2697.4,0.68110017]
[1769839133578,2.60273513,2697.7,2697.1,3.70873603]
[1769839134762,2.60273513,2697.7,2697.1,0.0011]
[1769839138364,2.60273513,2697.7,2697.3,0.0011]
[1769839138564,0.001,2697.5,2697.3,0.0011]
[1769839167012,2.90449794,2697.5,2697.1,0.0011]
[1769839169017,2.64312443,2697.4,2696.9,0.0011]
[1769839173691,2.64312443,2697.4,2697.1,0.0011]
[1769839173892,3.02625089,2697.4,2697.1,0.0011]
[1769839174193,0.001,2697.3,2697.1,0.0011]
[1769839184333,0.92773345,2697.7,2697.1,0.0011]
[1769839184334,2.69183551,2697.6,2697.1,0.0011]
[1769839184538,0.001,2697.7,2697.1,0.0011]
[1769839185231,2.69283551,2697.7,2697.1,0.0011]
[1769839185401,3.05488893,2697.7,2697.1,0.0011]
[1769839189233,3.98160718,2697.7,2697.1,0.0011]
[1769839196755,0.001,2697.7,2697.2,2.37157655]
[1769839196927,0.001,2697.9,2697.2,2.37057655]
[1769839197127,0.0002,2697.9,2697.2,2.37057655]
[1769839198259,0.0002,2697.9,2697.3,3.16134095]
[1769839198465,0.001,2697.5,2697.3,3.16134095]
[1769839198759,0.0002,2697.9,2697.3,3.16134095]
[1769839199234,0.0002,2697.9,2697.4,0.92681841]
[1769839201831,2.69203551,2697.9,2697.3,0.78885922]
[1769839202041,2.69203551,2697.9,2697.3,0.0011]
[1769839202246,2.69183551,2697.7,2697.1,0.0011]
[1769839202432,2.96103906,2697.7,2697.1,0.0011]
[1769839202841,2.69183551,2697.7,2697.1,0.0011]
[1769839207929,3.53620047,2697.9,2697.1,0.0011]
[1769839208962,2.60933213,2697.8,2697.1,0.9280215]
[1769839210175,2.60933213,2697.8,2697.3,0.0011]
[1769839210475,0.001,2697.7,2697.3,0.0011]
[1769839214094,0.0002,2697.9,2697.3,2.64529782]
[1769839214495,0.0002,2697.9,2697.5,2.64419782]
[1769839216076,0.0002,2697.9,2697.6,0.9267497]
[1769839217002,2.60933213,2698.3,2697.6,3.57094752]
[1769839217209,2.61033213,2698.5,2697.7,2.64419782]
[1769839219494,2.61033213,2698.5,2697.7,3.57089504]
[1769839219700,2.61033213,2698.5,2697.8,0.3570895]
[1769839221710,2.61033213,2698.5,2697.8,1.28375827]
[1769839222310,0.001,2698.3,2697.8,1.28375827]
[1769839226824,0.001,2698.3,2697.8,3.92795609]
[1769839233831,0.001,2698.9,2697.9,2.64419782]
[1769839234033,0.001,2698.9,2698.1,2.64419782]
[1769839234527,2.61033213,2698.9,2698.1,2.64419782]
[1769839235528,2.61033213,2698.9,2698.2,0.92654362]
[1769839235917,0.001,2698.3,2698.2,3.57074144]
[1769839236112,0.001,2698.9,2698.2,4.37614847]
[1769839238545,2.78754989,2698.9,2698.2,1.73194601]
[1769839244535,2.95003112,2698.8,2698.0,0.0011]
[1769839246359,2.95003112,2698.6,2698.0,0.0011]
[1769839247663,2.95003112,2698.6,2698.2,0.0011]
[1769839247854,2.95003112,2698.5,2698.2,0.0011]
[1769839250177,2.95003112,2698.4,2698.2,0.0011]
[1769839260594,0.001,2698.3,2698.2,0.0011]
[1769839262688,0.001,2698.3,2697.8,0.0011]
[1769839262689,2.95103112,2698.3,2697.8,0.0011]
[1769839272202,2.95103112,2698.3,2698.0,0.0011]
[1769839272397,3.3387788,2698.3,2698.0,0.0011]
[1769839272702,0.001,2698.1,2698.0,0.0011]
[1769839274593,0.001,2698.1,2697.8,0.0011]
[1769839274594,2.8602485,2698.1,2697.8,0.0011]
[1769839276399,0.001,2698.1,2697.8,0.0011]
[1769839284014,0.001,2698.1,2698.0,0.0011]
[1769839289806,0.001,2698.1,2697.8,0.0011]
[1769839290901,2.8602485,2698.1,2697.5,1.39087314]
[1769839291105,3.14527335,2698.0,2697.5,1.39087314]
[1769839292722,2.8592485,2698.0,2697.5,1.39087314]
[1769839294891,0.001,2698.3,2697.7,2.73534042]
[1769839295612,0.001,2698.3,2697.7,2.73644042]
[1769839296219,0.001,2698.7,2698.0,2.73534042]
[1769839296428,0.001,2698.7,2698.1,3.55926825]
[1769839296858,0.001,2698.7,2698.2,2.95309175]
[1769839297848,0.001,2698.7,2698.4,2.95309175]
[1769839299844,0.001,2698.7,2698.3,0.92650928]
[1769839300014,0.001,2698.7,2698.4,0.3762721]
[1769839300938,0.001,2698.7,2698.4,1.30273856]
[1769839301566,0.001,2698.7,2698.4,0.3762721]
[1769839303056,0.001,2698.9,2698.4,1.30274075]
[1769839303263,0.001,2698.9,2698.4,4.13895249]
[1769839303423,0.001,2698.9,2698.5,0.78449697]
[1769839303966,0.001,2698.9,2698.5,3.62070871]
[1769839307653,0.001,2698.9,2698.5,4.54711901]
[1769839307960,0.001,2698.7,2698.5,4.54711901]
[1769839309050,0.001,2698.7,2698.5,1.71090727]
[1769839309254,0.001,2698.7,2698.6,0.54167977]
[1769839312669,0.001,2699.3,2698.8,2.83621174]
[1769839312968,0.001,2699.5,2698.7,2.83621174]
[1769839313777,2.93068803,2699.5,2698.7,2.83621174]
[1769839313943,2.93068803,2699.5,2698.9,0.9263033]
[1769839315791,0.001,2699.5,2698.9,0.9263033]
[1769839316004,0.001,2699.5,2698.9,3.76251504]
[1769839319794,0.001,2699.5,2698.9,0.9263033]
[1769839320894,0.001,2699.3,2698.9,0.9263033]
[1769839321194,0.001,2699.3,2699.0,0.50090143]
[1769839332819,0.001,2699.3,2699.2,0.0011]
[1769839339529,0.001,2699.5,2699.2,0.0011]
[1769839345945,0.001,2699.3,2699.2,0.0011]
[1769839354052,3.13545973,2699.7,2699.2,0.0011]
[1769839354946,0.32056902,2699.7,2699.2,2.99285511]
[1769839355134,0.32056902,2699.7,2699.3,0.29928551]
[1769839355743,0.32056902,2699.7,2699.3,3.29104062]
[1769839356241,0.32056902,2699.7,2699.4,0.92613173]
[1769839357347,0.001,2699.5,2699.4,0.92613173]
[1769839357550,0.32056902,2699.7,2699.4,1.71842417]
[1769839365156,2.81489071,2700.1,2699.4,1.71842417]
[1769839367159,2.84554859,2700.8,2699.6,2.91991534]
[1769839368239,2.84554859,2700.7,2699.7,3.84594415]
[1769839369860,0.001,2699.9,2699.7,3.84594415]
[1769839370055,2.84554859,2700.7,2699.8,0.75500594]
[1769839370277,2.84554859,2701.0,2700.0,3.84584126]
[1769839373636,3.77113406,2701.0,2699.9,3.7037037]
[1769839373844,2.84554859,2700.9,2699.9,3.7037037]
[1769839374153,2.84554859,2700.9,2700.0,1.38023016]
[1769839376158,2.84554859,2700.9,2700.1,0.92589163]
[1769839376873,2.84554859,2700.9,2700.0,5.2260472]
[1769839377548,0.92561934,2700.9,2700.0,5.2260472]
[1769839377870,2.84554859,2700.8,2700.1,0.89298531]
[1769839379173,2.84554859,2700.8,2700.0,0.9259017]
[1769839379965,2.84554859,2700.8,2699.9,0.92596022]
[1769839380577,2.84554859,2700.8,2699.9,3.84587556]
[1769839382176,2.84654859,2700.8,2699.9,3.84587556]
[1769839387882,2.84654859,2700.8,2700.0,0.776]
[1769839388185,2.84654859,2700.8,2700.1,0.46218756]
[1769839389884,0.001,2700.8,2700.2,2.93940679]
[1769839390066,3.89907566,2701.2,2700.2,2.93940679]
[1769839390266,2.97355654,2701.1,2700.3,0.98251731]
[1769839390672,2.97355654,2701.1,2700.1,1.3880767]
[1769839393177,2.97355654,2700.9,2700.1,1.3880767]
[1769839395495,2.97355654,2700.8,2699.6,2.93940679]
[1769839395794,2.97355654,2700.8,2699.6,0.92604402]
[1769839397364,2.97355654,2700.6,2699.6,0.92604402]
[1769839397569,2.97355654,2700.4,2699.5,0.92719742]
[1769839397768,2.97355654,2700.4,2699.6,0.54239983]
[1769839398674,2.97355654,2700.4,2699.5,0.0011]
[1769839398878,0.01112491,2700.1,2699.5,0.0011]
[1769839399079,2.97355654,2700.0,2699.3,0.0011]
[1769839399680,2.97355654,2699.8,2699.3,0.0011]
[1769839399883,2.97355654,2699.6,2699.3,0.0011]
[1769839400397,2.97355654,2700.2,2699.3,0.0011]
[1769839400598,2.97355654,2700.1,2699.3,0.0011]
[1769839403882,2.97355654,2700.1,2699.3,2.94050679]
[1769839405976,2.97355654,2700.1,2699.3,0.0011]
[1769839406303,3.36350007,2700.1,2699.3,0.0011]
[1769839407678,3.36350007,2700.1,2699.5,0.0011]
[1769839407888,0.001,2699.9,2699.5,0.0011]
[1769839419716,2.86560557,2699.9,2699.5,0.0011]
[1769839420121,0.001,2699.7,2699.5,0.0011]
[1769839426932,3.15226613,2699.7,2699.3,0.0011]
[1769839427237,2.86560557,2699.7,2699.3,0.0011]
[1769839427533,2.86560557,2699.7,2699.2,0.0011]
[1769839427937,2.86560557,2699.7,2698.8,1.92615307]
[1769839428124,2.86460557,2699.4,2698.8,1.92615307]
[1769839428322,2.86460557,2699.2,2698.8,1.92615307]
[1769839431436,2.86460557,2699.2,2699.0,0.0011]
[1769839439338,2.86460557,2699.1,2698.8,1.92725307]
[1769839439545,2.86380557,2699.1,2698.5,0.0011]
[1769839439924,3.24280762,2699.1,2698.5,0.0011]
[1769839441452,2.86460557,2698.9,2698.5,0.0011]
[1769839441656,2.86460557,2698.7,2698.2,0.0011]
[1769839441948,2.86460557,2698.7,2697.9,0.0011]
[1769839442645,2.86460557,2698.5,2697.9,0.0011]
[1769839443445,3.79104618,2698.5,2698.4,0.0011]
[1769839443639,2.86460557,2698.4,2697.9,0.0011]
[1769839444152,2.86460557,2698.4,2698.1,0.0011]
[1769839446252,0.92642801,2698.6,2698.1,0.0011]
[1769839446559,3.79099843,2698.7,2698.1,0.0011]
[1769839446719,0.72144523,2698.6,2698.1,0.0011]
[1769839446925,3.68135517,2698.6,2698.1,0.0011]
[1769839448556,4.60776841,2698.6,2698.1,0.0011]
[1769839448754,3.68135517,2698.6,2698.1,0.0011]
[1769839449829,4.60776327,2698.6,2698.1,0.0011]
[1769839450325,3.79123732,2698.5,2698.1,0.0011]
[1769839451061,4.71768405,2698.5,2698.1,0.0011]
[1769839451230,3.88635667,2698.5,2698.1,0.0011]
[1769839456749,3.88635667,2698.5,2698.3,0.0011]
[1769839465869,2.95990994,2698.4,2697.9,0.0011]
[1769839468509,0.92650928,2698.3,2697.9,0.0011]
[1769839472579,2.95990994,2697.9,2697.0,0.0011]
[1769839472779,2.95990994,2697.6,2697.0,0.0011]
[1769839472985,3.80623082,2697.5,2697.0,0.0011]
[1769839473516,2.95990994,2697.4,2697.0,0.0011]
[1769839476529,3.88674259,2697.4,2697.0,0.0011]
[1769839478935,2.76829309,2697.3,2697.0,0.0011]
[1769839479924,0.001,2697.2,2697.0,0.0011]
[1769839482340,3.13890932,2697.2,2697.0,0.0011]
[1769839482644,3.13890932,2697.2,2696.7,0.0011]
[1769839483742,4.06580764,2697.2,2696.7,0.0011]
[1769839485164,2.76829309,2696.7,2695.8,0.0011]
[1769839485431,0.777,2697.1,2695.8,0.0011]
[1769839485432,2.76829309,2696.5,2695.8,0.0011]
[1769839485834,0.92716214,2696.4,2695.8,0.0011]
[1769839489448,2.76829309,2696.3,2695.2,2.90507356]
[1769839489760,2.77942027,2696.2,2695.2,2.90507356]
[1769839490054,3.50869323,2696.3,2695.2,2.90507356]
[1769839490216,0.74040014,2696.3,2695.5,2.90507356]
[1769839490431,1.66763024,2696.3,2695.5,2.90507356]
[1769839490629,0.53762926,2696.2,2695.5,2.90507356]
[1769839491460,1.46486498,2696.2,2695.7,0.0011]
[1769839492245,2.76829309,2696.1,2695.7,0.0011]
[1769839497553,0.9272997,2696.0,2695.7,0.0011]
[1769839502965,2.76829309,2695.9,2695.7,0.0011]
[1769839503174,0.36955928,2695.8,2695.5,0.0011]
[1769839503550,0.36955928,2695.8,2695.7,0.0011]
[1769839504160,0.36955928,2695.8,2695.5,0.0011]
[1769839505341,4.06525107,2695.8,2695.5,0.0011]
[1769839505571,0.77745989,2695.7,2695.5,0.0011]
[1769839506666,0.77745989,2695.7,2694.7,2.68503096]
[1769839506667,2.89421571,2695.6,2694.7,2.68503096]
[1769839507442,0.92747171,2695.5,2694.7,2.68503096]
[1769839507639,0.38216874,2695.4,2694.7,2.68503096]
[1769839508568,3.27638445,2695.4,2694.7,2.68503096]
[1769839509470,0.92754053,2695.3,2694.6,0.27261251]
[1769839509672,2.89421571,2695.2,2694.6,0.27261251]
[1769839509870,0.38217562,2695.1,2694.4,0.0011]
[1769839510374,3.27639133,2695.1,2694.4,0.0011]
[1769839510876,2.89421571,2694.9,2694.4,0.0011]
[1769839511379,2.90534888,2694.2,2693.2,3.61329473]
[1769839511575,0.92788479,2694.3,2693.5,2.68503096]
[1769839511776,0.92788479,2694.3,2693.6,3.04635354]
[1769839512075,0.92788479,2694.3,2693.6,2.68503096]